{"text_format":"1","workbook":"xlsx","n_sheets":4,"sheets":["入力用","①申請者控【入力不要（自動転記）】","②防災センター控【入力不要（自動転記）】","リスト"],"not_rendered":{"charts":0,"images":0,"macros":1,"external_links":0,"defined_names":15,"comments":0,"pivot_tables":0},"unopened":[],"bounds":{"document_bytes":16777216,"sheet_cells":100000,"rows_first":2000,"rows_last":500,"rows_between":2000,"halvings":0,"cell_chars":16384,"cell_head_chars":4096},"cells_cut":0,"cells_raw":0,"read":"whole","date_system":"1900"}

{"sheet":"入力用","index":0,"n_rows":154,"n_cols":55,"rows_kept":154,"cut":false,"hidden":false,"merged":[[86,16,86,30],[85,27,85,30],[86,11,86,15],[77,0,78,3],[84,0,84,3],[83,0,83,3],[65,21,65,30],[67,26,67,27],[66,21,66,30],[71,0,71,3],[71,4,71,30],[80,13,80,30],[79,0,80,3],[67,28,67,29],[72,0,76,3],[67,18,67,20],[84,8,84,30],[81,0,82,3],[80,4,80,6],[70,19,70,29],[67,4,67,6],[65,18,65,20],[88,0,89,3],[82,10,82,11],[82,22,82,23],[101,28,103,30],[82,25,82,29],[100,25,100,27],[101,19,103,21],[100,0,103,6],[101,22,103,24],[101,25,103,27],[100,9,101,15],[100,28,100,30],[100,22,100,24],[87,8,87,30],[102,7,103,8],[86,8,86,10],[102,9,103,15],[100,19,100,21],[100,7,101,8],[100,16,100,18],[101,16,103,18],[85,19,85,23],[85,24,85,26],[88,4,88,30],[83,8,83,30],[97,18,97,20],[89,4,89,30],[68,19,68,20],[69,19,69,20],[82,7,82,8],[95,18,96,30],[90,18,94,30],[87,0,87,3],[85,8,85,9],[85,10,85,15],[69,16,69,17],[70,0,70,3],[69,4,69,5],[74,6,74,30],[75,4,75,30],[78,7,78,17],[77,26,77,28],[82,4,82,5],[90,0,98,0],[97,21,97,28],[86,0,86,3],[81,22,81,30],[85,0,85,3],[85,16,85,18],[70,4,70,6],[70,8,70,10],[66,18,66,20],[65,4,65,6],[67,7,67,17],[81,19,81,21],[73,11,73,29],[78,21,78,30],[78,18,78,20],[82,16,82,17],[82,19,82,20],[81,8,81,10],[81,11,81,18],[74,4,74,5],[77,8,77,10],[77,11,77,21],[77,22,77,23],[76,4,76,30],[82,13,82,14],[80,7,80,12],[78,4,78,6],[66,4,66,6],[68,4,68,5],[57,0,58,13],[62,7,62,17],[61,4,61,5],[62,4,62,6],[61,0,61,3],[72,12,72,19],[70,13,70,15],[62,0,63,3],[63,4,63,6],[65,7,65,17],[64,18,64,20],[68,0,69,3],[64,0,64,3],[61,29,61,30],[68,16,68,17],[59,0,59,30],[65,0,67,3],[64,4,64,6],[63,7,63,16],[64,7,64,17],[66,7,66,17],[63,18,63,20],[61,24,61,25],[61,18,61,20],[62,21,62,30],[61,21,61,23],[61,26,61,28],[63,21,63,30],[62,18,62,20],[67,21,67,25],[64,21,64,30],[2,0,2,30],[4,0,5,30],[6,0,6,3],[6,4,6,5],[6,18,6,20],[6,21,6,23],[6,24,6,25],[6,26,6,28],[6,29,6,30],[7,0,7,3],[7,4,7,6],[7,7,7,17],[7,18,7,20],[7,21,7,30],[8,0,8,3],[8,4,8,6],[8,7,8,16],[8,18,8,20],[8,21,8,30],[11,7,11,17],[11,18,11,20],[11,21,11,30],[12,0,12,3],[12,4,12,5],[12,16,12,17],[12,19,12,20],[12,23,12,24],[12,26,12,27],[9,0,11,3],[9,4,9,6],[9,7,9,17],[9,18,9,20],[9,21,9,30],[10,4,10,6],[10,7,10,16],[10,18,10,20],[10,21,10,30],[11,4,11,6],[13,0,13,3],[13,4,13,6],[13,9,13,29],[14,0,14,3],[14,4,14,30],[15,0,16,3],[15,4,15,5],[15,7,15,8],[15,10,15,11],[15,13,15,14],[15,16,15,17],[16,4,16,5],[16,7,16,29],[17,0,17,3],[17,4,17,5],[17,7,17,8],[17,10,17,11],[17,13,17,14],[17,16,17,29],[18,0,19,3],[18,4,18,6],[18,9,18,11],[18,14,18,16],[18,19,18,21],[18,24,18,26],[19,4,19,6],[19,9,19,11],[19,13,19,29],[20,0,20,3],[22,2,22,30],[23,2,23,30],[27,2,27,30],[28,2,28,30],[29,2,29,30],[42,2,42,30],[36,1,36,30],[37,2,37,30],[38,2,38,30],[39,2,39,30],[40,2,40,30],[41,2,41,30],[47,10,47,18],[47,19,47,24],[30,2,31,30],[32,2,33,30],[34,2,34,30],[43,0,44,9],[43,10,43,18],[43,19,43,24],[43,25,44,30],[44,10,44,18],[44,19,44,24],[35,1,35,30],[54,19,56,21],[54,22,56,24],[54,25,56,27],[54,28,56,30],[0,0,1,13],[52,0,56,7],[52,8,56,9],[52,22,52,30],[53,19,53,21],[53,22,53,24],[53,25,53,27],[53,28,53,30],[52,19,52,21],[52,10,56,18],[49,0,50,9],[49,10,49,18],[49,19,49,24],[49,25,50,30],[50,10,50,18],[50,19,50,24],[46,0,47,9],[46,10,46,18],[46,19,46,24],[46,25,47,30]]}
["網掛部分に必要事項を記入（または選択）してください。"]
[]
["火　気　使　用　届（入力用シート）"]
[]
["　下記の要領で作業を実施したいので許可願います。なお、火気使用の開始・終了時には必ず防災センターに報告します。また、作業後3時間、火気使用作業場所の監視を行います。"]
[]
["申 請 日",null,null,null,null,null,"年",null,"月",null,"日","（",null,"）",null,null,null,null,"作業区分",null,null,"ビル作業",null,null,null,null,"ﾃﾅﾝﾄ作業"]
["申 請 者",null,null,null,"会 社 名",null,null,null,null,null,null,null,null,null,null,null,null,null,"部署名"]
["（ﾃﾅﾝﾄ作業の場合ﾃﾅﾝﾄ名）",null,null,null,"テナント\n防火管理者",null,null,null,null,null,null,null,null,null,null,null,null,"㊞","電話番号"]
["作 業 者",null,null,null,"会 社 名",null,null,null,null,null,null,null,null,null,null,null,null,null,"会社電話"]
[null,null,null,null,"火気使用\n責任者名",null,null,null,null,null,null,null,null,null,null,null,null,"㊞","携帯電話"]
[null,null,null,null,"火気使用者名",null,null,null,null,null,null,null,null,null,null,null,null,null,"携帯電話"]
["作業日時",null,null,null,null,null,"年",null,"月",null,"日","（",null,"）",null,null,null,null,"時",null,null,"分","から",null,{"$error":"#REF!"},"時",null,{"$error":"#REF!"},"分","まで"]
["作業場所",null,null,null,null,null,null,"階","（",null,null,null,null,null,null,null,null,null,null,null,null,null,null,null,null,null,null,null,null,null,"）"]
["件名"]
["火気使用目的",null,null,null,"溶接：",null,null,"溶断：",null,null,"圧接：",null,null,"防水：",null,null,"乾燥："]
[null,null,null,null,"その他：",null,"（",null,null,null,null,null,null,null,null,null,null,null,null,null,null,null,null,null,null,null,null,null,null,null,"）"]
["火気種類",null,null,null,"電気：",null,null,"ガス：",null,null,"ｻﾝﾀﾞｰ：",null,null,"その他：",null,"（",null,null,null,null,null,null,null,null,null,null,null,null,null,null,"）"]
["管理方法",null,null,null,"消火器：",null,null,null,"本","水バケツ：",null,null,null,"個","防炎シート：",null,null,null,"枚","案内標識：",null,null,null,"台","監視員：",null,null,null,"名"]
[null,null,null,null,"消火砂：",null,null,null,"個","その他：",null,null,"（",null,null,null,null,null,null,null,null,null,null,null,null,null,null,null,null,null,"）"]
["火報連動遮断",null,null,null,"連動停止が必要な場合、別紙「防災盤連動停止願い申請書」を提出してください。"]
["【遵守事項】"]
[null,"1.","火気使用作業に関する「施工要領書」を別途作成し、事前に防災センターと協議、承認を得たうえで本書を提出すること。"]
[null,"2.","火気使用作業に関する「施工要領書」には、つぎの事項を記載すること。"]
[null,null,"①使用火気類",null,null,null,null,"②施工場所（図面に記載）",null,null,null,null,null,null,null,"③養生計画　※簡単なデッサン等を添付",null,null,null,null,null,null,null,null,null,"④火気作業監視者"]
[null,null,"⑤火気工事作業責任者名　※火気作業施工実施者名の明記と作業資格証明書の添付",null,null,null,null,null,null,null,null,null,null,null,null,null,null,null,null,null,null,null,"⑥具体的な管理方法"]
[null,null,"⑦溶断材の処理方法（骨等溶断は水舟に5分間以上浸す等）",null,null,null,null,null,null,null,null,null,null,null,null,null,"⑧消火設備の配置（消火器・水バケツ・防炎シート等）"]
[null,"3.","本書は、原則として作業日の１週間前までに「作業届」と一緒に提出すること。（期限以降は、特別な事由がない限り受付けない。）"]
[null,"4.","作業当日は、本書の控えおよび作業届けの控えを持参すること。"]
[null,"5.","火気作業監視者は、火気使用作業開始、終了時に、防災センターへ連絡すること。"]
[null,"6.","作業時には周囲の可燃物を撤去、移動したうえで作業を行うよう徹底すること。また、作業にともなう火災検知器の発報の可能性がある場合、事前に適切な処置を施すこと。"]
[]
[null,"7.","火気作業監視者は、火気作業時および作業後１時間は作業場所の常時監視にあたり、さらに１時間経過した時点で、再度作業場所を巡回点検すること。さらに1時間後に防災センターと確認すること。"]
[]
[null,"8.","火気にて処理した部材等は、可燃物と混合しないこと。"]
[null,"個人情報の取扱いについて"]
[null,"三井不動産ビルマネジメント株式会社は、お預かりした個人情報について、以下のとおり取扱います。同意の上ご提出をお願いいたします。"]
[null,"1.","ビルの運営管理上、作業内容の把握および作業許可・変更指示、その他作業にともなう対応を行うために個人情報を収集、"]
[null,null,"利用させていただきます。"]
[null,"2.","個人情報を利用するにあたり、上記目的のため設備会社、警備会社、清掃会社、所有者、賃貸人に対し個人情報を委託することがございます。"]
[null,null,"記載以外に委託はいたしません。"]
[null,"3.","個人情報は当社HPで公開している個人情報保護方針に従い、適切な安全管理対策を行います。"]
[null,null,"（当社HP：https://www.mfbm.co.jp/privacy/）"]
["火気作業監視者確認",null,null,null,null,null,null,null,null,null,"確認日時",null,null,null,null,null,null,null,null,"確認者",null,null,null,null,null,"※作業終了時"]
[null,null,null,null,null,null,null,null,null,null,"月　　　日　　　時　　　分"]
[]
["火気作業監視者確認",null,null,null,null,null,null,null,null,null,"確認日時",null,null,null,null,null,null,null,null,"確認者",null,null,null,null,null,"※作業終了１時間後"]
[null,null,null,null,null,null,null,null,null,null,"月　　　日　　　時　　　分"]
[]
["防災センター最終確認",null,null,null,null,null,null,null,null,null,"確認日時",null,null,null,null,null,null,null,null,"確認者",null,null,null,null,null,"※作業終了3時間後\n火気作業監視者同行"]
[null,null,null,null,null,null,null,null,null,null,"月　　　日　　　時　　　分"]
[]
["日本橋髙島屋三井ビルディング\n防災センター\n　\nＴＥＬ：03-3272-0511\nFAX：03-3272-0517",null,null,null,null,null,null,null,"承認日",null,"年　　　月　　　日",null,null,null,null,null,null,null,null,"防火担当者",null,null,"防災センター"]
[null,null,null,null,null,null,null,null,null,null,null,null,null,null,null,null,null,null,null,"防火管理技能者",null,null,"設備",null,null,"警備",null,null,"受付者"]
[]
[]
[]
[]
[]
[]
[]
[]
[]
[]
[]
[]
[]
[]
[]
[]
[]
[]
[]
[]
[]
[]
[]
[]
[]
[]
[]
[]
[]
[]
[]
[]
[]
[]
[]
[]
[]
[]
[]
[]
[]
[]
[]
[]
[]
[]
[]
[]
[null,null,null,null,null,null,null,null,null,null,null,null,null,null,null,null,null,null,null,null,null,null,null,null,null,null,null,null,null,null,null,null,null,null,null,null,null,null,null,null,null,null,null,null,null,null,"【リスト】"]
[null,null,null,null,null,null,null,null,null,null,null,null,null,null,null,null,null,null,null,null,null,null,null,null,null,null,null,null,null,null,null,null,null,null,null,null,null,null,null,null,null,null,null,null,null,null,null,"年","月","日","曜","階","時","分","側"]
[null,null,null,null,null,null,null,null,null,null,null,null,null,null,null,null,null,null,null,null,null,null,null,null,null,null,null,null,null,null,null,null,null,null,null,null,null,null,null,null,null,null,null,null,null,null,1,2018,1,1,"月","B5",0,0,"東"]
[null,null,null,null,null,null,null,null,null,null,null,null,null,null,null,null,null,null,null,null,null,null,null,null,null,null,null,null,null,null,null,null,null,null,null,null,null,null,null,null,null,null,null,null,null,null,2,2019,2,2,"火","B4",1,5,"南"]
[null,null,null,null,null,null,null,null,null,null,null,null,null,null,null,null,null,null,null,null,null,null,null,null,null,null,null,null,null,null,null,null,null,null,null,null,null,null,null,null,null,null,null,null,null,null,3,2020,3,3,"水","B3",2,10,"西"]
[null,null,null,null,null,null,null,null,null,null,null,null,null,null,null,null,null,null,null,null,null,null,null,null,null,null,null,null,null,null,null,null,null,null,null,null,null,null,null,null,null,null,null,null,null,null,4,2021,4,4,"木","B2",3,15,"北"]
[null,null,null,null,null,null,null,null,null,null,null,null,null,null,null,null,null,null,null,null,null,null,null,null,null,null,null,null,null,null,null,null,null,null,null,null,null,null,null,null,null,null,null,null,null,null,5,2022,5,5,"金","B1",4,20]
[null,null,null,null,null,null,null,null,null,null,null,null,null,null,null,null,null,null,null,null,null,null,null,null,null,null,null,null,null,null,null,null,null,null,null,null,null,null,null,null,null,null,null,null,null,null,6,2023,6,6,"土",1,5,25]
[null,null,null,null,null,null,null,null,null,null,null,null,null,null,null,null,null,null,null,null,null,null,null,null,null,null,null,null,null,null,null,null,null,null,null,null,null,null,null,null,null,null,null,null,null,null,7,2024,7,7,"日",2,6,30]
[null,null,null,null,null,null,null,null,null,null,null,null,null,null,null,null,null,null,null,null,null,null,null,null,null,null,null,null,null,null,null,null,null,null,null,null,null,null,null,null,null,null,null,null,null,null,8,2025,8,8,null,3,7,35]
[null,null,null,null,null,null,null,null,null,null,null,null,null,null,null,null,null,null,null,null,null,null,null,null,null,null,null,null,null,null,null,null,null,null,null,null,null,null,null,null,null,null,null,null,null,null,9,2026,9,9,null,4,8,40]
[null,null,null,null,null,null,null,null,null,null,null,null,null,null,null,null,null,null,null,null,null,null,null,null,null,null,null,null,null,null,null,null,null,null,null,null,null,null,null,null,null,null,null,null,null,null,10,2027,10,10,null,5,9,45]
[null,null,null,null,null,null,null,null,null,null,null,null,null,null,null,null,null,null,null,null,null,null,null,null,null,null,null,null,null,null,null,null,null,null,null,null,null,null,null,null,null,null,null,null,null,null,11,2028,11,11,null,6,10,50]
[null,null,null,null,null,null,null,null,null,null,null,null,null,null,null,null,null,null,null,null,null,null,null,null,null,null,null,null,null,null,null,null,null,null,null,null,null,null,null,null,null,null,null,null,null,null,12,2029,12,12,null,7,11,55]
[null,null,null,null,null,null,null,null,null,null,null,null,null,null,null,null,null,null,null,null,null,null,null,null,null,null,null,null,null,null,null,null,null,null,null,null,null,null,null,null,null,null,null,null,null,null,13,2030,null,13,null,8,12]
[null,null,null,null,null,null,null,null,null,null,null,null,null,null,null,null,null,null,null,null,null,null,null,null,null,null,null,null,null,null,null,null,null,null,null,null,null,null,null,null,null,null,null,null,null,null,14,2031,null,14,null,9,13]
[null,null,null,null,null,null,null,null,null,null,null,null,null,null,null,null,null,null,null,null,null,null,null,null,null,null,null,null,null,null,null,null,null,null,null,null,null,null,null,null,null,null,null,null,null,null,15,2032,null,15,null,10,14]
[null,null,null,null,null,null,null,null,null,null,null,null,null,null,null,null,null,null,null,null,null,null,null,null,null,null,null,null,null,null,null,null,null,null,null,null,null,null,null,null,null,null,null,null,null,null,16,2033,null,16,null,11,15]
[null,null,null,null,null,null,null,null,null,null,null,null,null,null,null,null,null,null,null,null,null,null,null,null,null,null,null,null,null,null,null,null,null,null,null,null,null,null,null,null,null,null,null,null,null,null,17,2034,null,17,null,12,16]
[null,null,null,null,null,null,null,null,null,null,null,null,null,null,null,null,null,null,null,null,null,null,null,null,null,null,null,null,null,null,null,null,null,null,null,null,null,null,null,null,null,null,null,null,null,null,18,2035,null,18,null,13,17]
[null,null,null,null,null,null,null,null,null,null,null,null,null,null,null,null,null,null,null,null,null,null,null,null,null,null,null,null,null,null,null,null,null,null,null,null,null,null,null,null,null,null,null,null,null,null,19,2036,null,19,null,14,18]
[null,null,null,null,null,null,null,null,null,null,null,null,null,null,null,null,null,null,null,null,null,null,null,null,null,null,null,null,null,null,null,null,null,null,null,null,null,null,null,null,null,null,null,null,null,null,20,2037,null,20,null,15,19]
[null,null,null,null,null,null,null,null,null,null,null,null,null,null,null,null,null,null,null,null,null,null,null,null,null,null,null,null,null,null,null,null,null,null,null,null,null,null,null,null,null,null,null,null,null,null,21,2038,null,21,null,16,20]
[null,null,null,null,null,null,null,null,null,null,null,null,null,null,null,null,null,null,null,null,null,null,null,null,null,null,null,null,null,null,null,null,null,null,null,null,null,null,null,null,null,null,null,null,null,null,22,2039,null,22,null,17,21]
[null,null,null,null,null,null,null,null,null,null,null,null,null,null,null,null,null,null,null,null,null,null,null,null,null,null,null,null,null,null,null,null,null,null,null,null,null,null,null,null,null,null,null,null,null,null,23,2040,null,23,null,18,22]
[null,null,null,null,null,null,null,null,null,null,null,null,null,null,null,null,null,null,null,null,null,null,null,null,null,null,null,null,null,null,null,null,null,null,null,null,null,null,null,null,null,null,null,null,null,null,24,2041,null,24,null,19,23]
[null,null,null,null,null,null,null,null,null,null,null,null,null,null,null,null,null,null,null,null,null,null,null,null,null,null,null,null,null,null,null,null,null,null,null,null,null,null,null,null,null,null,null,null,null,null,25,2042,null,25,null,20]
[null,null,null,null,null,null,null,null,null,null,null,null,null,null,null,null,null,null,null,null,null,null,null,null,null,null,null,null,null,null,null,null,null,null,null,null,null,null,null,null,null,null,null,null,null,null,26,2043,null,26,null,21]
[null,null,null,null,null,null,null,null,null,null,null,null,null,null,null,null,null,null,null,null,null,null,null,null,null,null,null,null,null,null,null,null,null,null,null,null,null,null,null,null,null,null,null,null,null,null,27,2044,null,27,null,22]
[null,null,null,null,null,null,null,null,null,null,null,null,null,null,null,null,null,null,null,null,null,null,null,null,null,null,null,null,null,null,null,null,null,null,null,null,null,null,null,null,null,null,null,null,null,null,28,2045,null,28,null,23]
[null,null,null,null,null,null,null,null,null,null,null,null,null,null,null,null,null,null,null,null,null,null,null,null,null,null,null,null,null,null,null,null,null,null,null,null,null,null,null,null,null,null,null,null,null,null,29,2046,null,29,null,24]
[null,null,null,null,null,null,null,null,null,null,null,null,null,null,null,null,null,null,null,null,null,null,null,null,null,null,null,null,null,null,null,null,null,null,null,null,null,null,null,null,null,null,null,null,null,null,30,2047,null,30,null,25]
[null,null,null,null,null,null,null,null,null,null,null,null,null,null,null,null,null,null,null,null,null,null,null,null,null,null,null,null,null,null,null,null,null,null,null,null,null,null,null,null,null,null,null,null,null,null,31,2048,null,31,null,26]
[null,null,null,null,null,null,null,null,null,null,null,null,null,null,null,null,null,null,null,null,null,null,null,null,null,null,null,null,null,null,null,null,null,null,null,null,null,null,null,null,null,null,null,null,null,null,32,2049,null,null,null,27]
[null,null,null,null,null,null,null,null,null,null,null,null,null,null,null,null,null,null,null,null,null,null,null,null,null,null,null,null,null,null,null,null,null,null,null,null,null,null,null,null,null,null,null,null,null,null,33,2050,null,null,null,28]
[null,null,null,null,null,null,null,null,null,null,null,null,null,null,null,null,null,null,null,null,null,null,null,null,null,null,null,null,null,null,null,null,null,null,null,null,null,null,null,null,null,null,null,null,null,null,34,2051,null,null,null,29]
[null,null,null,null,null,null,null,null,null,null,null,null,null,null,null,null,null,null,null,null,null,null,null,null,null,null,null,null,null,null,null,null,null,null,null,null,null,null,null,null,null,null,null,null,null,null,35,2052,null,null,null,30]
[null,null,null,null,null,null,null,null,null,null,null,null,null,null,null,null,null,null,null,null,null,null,null,null,null,null,null,null,null,null,null,null,null,null,null,null,null,null,null,null,null,null,null,null,null,null,36,2053,null,null,null,31]
[null,null,null,null,null,null,null,null,null,null,null,null,null,null,null,null,null,null,null,null,null,null,null,null,null,null,null,null,null,null,null,null,null,null,null,null,null,null,null,null,null,null,null,null,null,null,37,2054,null,null,null,32]
[null,null,null,null,null,null,null,null,null,null,null,null,null,null,null,null,null,null,null,null,null,null,null,null,null,null,null,null,null,null,null,null,null,null,null,null,null,null,null,null,null,null,null,null,null,null,38,2055,null,null,null,"PH"]
[null,null,null,null,null,null,null,null,null,null,null,null,null,null,null,null,null,null,null,null,null,null,null,null,null,null,null,null,null,null,null,null,null,null,null,null,null,null,null,null,null,null,null,null,null,null,39,2056]
[null,null,null,null,null,null,null,null,null,null,null,null,null,null,null,null,null,null,null,null,null,null,null,null,null,null,null,null,null,null,null,null,null,null,null,null,null,null,null,null,null,null,null,null,null,null,40,2057]
[null,null,null,null,null,null,null,null,null,null,null,null,null,null,null,null,null,null,null,null,null,null,null,null,null,null,null,null,null,null,null,null,null,null,null,null,null,null,null,null,null,null,null,null,null,null,41,2058]
[null,null,null,null,null,null,null,null,null,null,null,null,null,null,null,null,null,null,null,null,null,null,null,null,null,null,null,null,null,null,null,null,null,null,null,null,null,null,null,null,null,null,null,null,null,null,42,2059]
[null,null,null,null,null,null,null,null,null,null,null,null,null,null,null,null,null,null,null,null,null,null,null,null,null,null,null,null,null,null,null,null,null,null,null,null,null,null,null,null,null,null,null,null,null,null,43,2060]
[null,null,null,null,null,null,null,null,null,null,null,null,null,null,null,null,null,null,null,null,null,null,null,null,null,null,null,null,null,null,null,null,null,null,null,null,null,null,null,null,null,null,null,null,null,null,44,2061]
[null,null,null,null,null,null,null,null,null,null,null,null,null,null,null,null,null,null,null,null,null,null,null,null,null,null,null,null,null,null,null,null,null,null,null,null,null,null,null,null,null,null,null,null,null,null,45,2062]
[null,null,null,null,null,null,null,null,null,null,null,null,null,null,null,null,null,null,null,null,null,null,null,null,null,null,null,null,null,null,null,null,null,null,null,null,null,null,null,null,null,null,null,null,null,null,46,2063]
[null,null,null,null,null,null,null,null,null,null,null,null,null,null,null,null,null,null,null,null,null,null,null,null,null,null,null,null,null,null,null,null,null,null,null,null,null,null,null,null,null,null,null,null,null,null,47,2064]
[null,null,null,null,null,null,null,null,null,null,null,null,null,null,null,null,null,null,null,null,null,null,null,null,null,null,null,null,null,null,null,null,null,null,null,null,null,null,null,null,null,null,null,null,null,null,48,2065]
[null,null,null,null,null,null,null,null,null,null,null,null,null,null,null,null,null,null,null,null,null,null,null,null,null,null,null,null,null,null,null,null,null,null,null,null,null,null,null,null,null,null,null,null,null,null,49,2066]
[null,null,null,null,null,null,null,null,null,null,null,null,null,null,null,null,null,null,null,null,null,null,null,null,null,null,null,null,null,null,null,null,null,null,null,null,null,null,null,null,null,null,null,null,null,null,50,2067]

{"sheet":"①申請者控【入力不要（自動転記）】","index":1,"n_rows":67,"n_cols":71,"rows_kept":67,"cut":false,"hidden":false,"merged":[[2,0,2,30],[4,0,5,30],[6,0,6,3],[6,4,6,5],[6,18,6,20],[6,21,6,23],[6,24,6,25],[6,26,6,28],[6,29,6,30],[7,0,7,3],[7,4,7,6],[7,7,7,17],[7,18,7,20],[7,21,7,30],[8,0,8,3],[8,4,8,6],[8,7,8,16],[8,18,8,20],[8,21,8,30],[11,7,11,17],[11,18,11,20],[11,21,11,30],[12,0,12,3],[12,4,12,5],[12,16,12,17],[12,19,12,20],[12,23,12,24],[12,26,12,27],[9,0,11,3],[9,4,9,6],[9,7,9,17],[9,18,9,20],[9,21,9,30],[10,4,10,6],[10,7,10,16],[10,18,10,20],[10,21,10,30],[11,4,11,6],[13,0,13,3],[13,4,13,6],[13,9,13,29],[14,0,14,3],[14,4,14,30],[15,0,16,3],[15,4,15,5],[15,7,15,8],[15,10,15,11],[15,13,15,14],[15,16,15,17],[16,4,16,5],[16,7,16,29],[17,0,17,3],[17,4,17,5],[17,7,17,8],[17,10,17,11],[17,13,17,14],[17,16,17,29],[20,0,20,3],[22,2,22,30],[27,2,27,30],[28,2,28,30],[18,0,19,3],[18,4,18,6],[18,9,18,11],[18,14,18,16],[18,19,18,21],[18,24,18,26],[19,4,19,6],[19,9,19,11],[19,13,19,29],[49,25,50,30],[50,10,50,18],[50,19,50,24],[43,10,43,18],[43,0,44,9],[34,2,34,30],[47,19,47,24],[47,10,47,18],[46,25,47,30],[46,19,46,24],[46,10,46,18],[46,0,47,9],[35,1,35,30],[36,1,36,30],[41,2,41,30],[42,2,42,30],[37,2,37,30],[38,2,38,30],[39,2,39,30],[40,2,40,30],[29,2,29,30],[23,2,23,30],[44,19,44,24],[44,10,44,18],[43,25,44,30],[43,19,43,24],[32,2,33,30],[30,2,31,30],[54,22,56,24],[54,25,56,27],[54,28,56,30],[52,0,56,7],[52,8,56,9],[52,22,52,30],[53,19,53,21],[53,22,53,24],[53,25,53,27],[53,28,53,30],[52,19,52,21],[52,10,56,18],[54,19,56,21],[49,0,50,9],[49,10,49,18],[49,19,49,24]]}
[null,null,null,null,null,null,null,null,null,null,null,null,null,null,null,null,null,null,null,null,null,null,null,null,null,null,null,null,null,null,"①申請者控"]
["日本橋髙島屋三井ビル　防災センター　御中"]
["火　気　使　用　届"]
[]
["　下記の要領で作業を実施したいので許可願います。なお、火気使用の開始・終了時には必ず防災センターに報告します。また、作業後3時間、火気使用作業場所の監視を行います。"]
[]
["申 請 日",null,null,null,{"$f":"IF(入力用!E7=\"\",\"\",入力用!E7)","v":""},null,"年",{"$f":"IF(入力用!H7=\"\",\"\",入力用!H7)","v":""},"月",{"$f":"IF(入力用!J7=\"\",\"\",入力用!J7)","v":""},"日","（",{"$f":"IF(入力用!M7=\"\",\"\",入力用!M7)","v":""},"）",null,null,null,null,"作業区分",null,null,"ビル作業",null,null,{"$f":"IF(入力用!Y7=\"\",\"\",入力用!Y7)","v":""},null,"ﾃﾅﾝﾄ作業",null,null,{"$f":"IF(入力用!AD7=\"\",\"\",入力用!AD7)","v":""}]
["申 請 者",null,null,null,"会 社 名",null,null,{"$f":"IF(入力用!H8=\"\",\"\",入力用!H8)","v":""},null,null,null,null,null,null,null,null,null,null,"部署名",null,null,{"$f":"IF(入力用!V8=\"\",\"\",入力用!V8)","v":""}]
["（ﾃﾅﾝﾄ作業の場合ﾃﾅﾝﾄ名）",null,null,null,"テナント\n防火管理者",null,null,{"$f":"IF(入力用!H9=\"\",\"\",入力用!H9)","v":""},null,null,null,null,null,null,null,null,null,"㊞","電話番号",null,null,{"$f":"IF(入力用!V9=\"\",\"\",入力用!V9)","v":""}]
["作 業 者",null,null,null,"会 社 名",null,null,{"$f":"IF(入力用!H10=\"\",\"\",入力用!H10)","v":""},null,null,null,null,null,null,null,null,null,null,"会社電話",null,null,{"$f":"IF(入力用!V10=\"\",\"\",入力用!V10)","v":""}]
[null,null,null,null,"火気使用\n責任者名",null,null,{"$f":"IF(入力用!H11=\"\",\"\",入力用!H11)","v":""},null,null,null,null,null,null,null,null,null,"㊞","携帯電話",null,null,{"$f":"IF(入力用!V11=\"\",\"\",入力用!V11)","v":""}]
[null,null,null,null,"火気使用者名",null,null,{"$f":"IF(入力用!H12=\"\",\"\",入力用!H12)","v":""},null,null,null,null,null,null,null,null,null,null,"携帯電話",null,null,{"$f":"IF(入力用!V12=\"\",\"\",入力用!V12)","v":""}]
["作業日時",null,null,null,{"$f":"IF(入力用!E13=\"\",\"\",入力用!E13)","v":""},null,"年",{"$f":"IF(入力用!H13=\"\",\"\",入力用!H13)","v":""},"月",{"$f":"IF(入力用!J13=\"\",\"\",入力用!J13)","v":""},"日","（",{"$f":"IF(入力用!M13=\"\",\"\",入力用!M13)","v":""},"）",null,null,{"$f":"IF(入力用!Q13=\"\",\"\",入力用!Q13)","v":""},{"$error":"#REF!"},"時",{"$f":"IF(入力用!T13=\"\",\"\",入力用!T13)","v":""},{"$error":"#REF!"},"分","から",{"$f":"IF(入力用!X13=\"\",\"\",入力用!X13)","v":""},{"$error":"#REF!"},"時",{"$f":"IF(入力用!AA13=\"\",\"\",入力用!AA13)","v":""},{"$error":"#REF!"},"分","まで"]
["作業場所",null,null,null,{"$f":"IF(入力用!E14=\"\",\"\",入力用!E14)","v":""},null,null,"階","（",{"$f":"IF(入力用!J14=\"\",\"\",入力用!J14)","v":""},{"$error":"#REF!"},{"$error":"#REF!"},{"$error":"#REF!"},{"$error":"#REF!"},{"$error":"#REF!"},{"$error":"#REF!"},{"$error":"#REF!"},{"$error":"#REF!"},{"$error":"#REF!"},{"$error":"#REF!"},{"$error":"#REF!"},{"$error":"#REF!"},{"$error":"#REF!"},{"$error":"#REF!"},{"$error":"#REF!"},{"$error":"#REF!"},{"$error":"#REF!"},{"$error":"#REF!"},{"$error":"#REF!"},{"$error":"#REF!"},"）"]
["件名",null,null,null,{"$f":"IF(入力用!E15=\"\",\"\",入力用!E15)","v":""}]
["火気使用目的",null,null,null,"溶接：",null,{"$f":"IF(入力用!G16=\"\",\"\",入力用!G16)","v":""},"溶断：",null,{"$f":"IF(入力用!J16=\"\",\"\",入力用!J16)","v":""},"圧接：",null,{"$f":"IF(入力用!M16=\"\",\"\",入力用!M16)","v":""},"防水：",null,{"$f":"IF(入力用!P16=\"\",\"\",入力用!P16)","v":""},"乾燥：",null,{"$f":"IF(入力用!S16=\"\",\"\",入力用!S16)","v":""}]
[null,null,null,null,"その他：",null,"（",{"$f":"IF(入力用!H17=\"\",\"\",入力用!H17)","v":""},null,null,null,null,null,null,null,null,null,null,null,null,null,null,null,null,null,null,null,null,null,null,"）"]
["火気種類",null,null,null,"電気：",null,{"$f":"IF(入力用!G18=\"\",\"\",入力用!G18)","v":""},"ガス：",null,{"$f":"IF(入力用!J18=\"\",\"\",入力用!J18)","v":""},"ｻﾝﾀﾞｰ：",null,{"$f":"IF(入力用!M18=\"\",\"\",入力用!M18)","v":""},"その他：",null,"（",{"$f":"IF(入力用!Q18=\"\",\"\",入力用!Q18)","v":""},null,null,null,null,null,null,null,null,null,null,null,null,null,"）"]
["管理方法",null,null,null,"消火器：",null,null,{"$f":"IF(入力用!H19=\"\",\"\",入力用!H19)","v":""},"本","水バケツ：",null,null,{"$f":"IF(入力用!M19=\"\",\"\",入力用!M19)","v":""},"個","防炎シート：",null,null,{"$f":"IF(入力用!R19=\"\",\"\",入力用!R19)","v":""},"枚","案内標識：",null,null,{"$f":"IF(入力用!W19=\"\",\"\",入力用!W19)","v":""},"台","監視員：",null,null,{"$f":"IF(入力用!AB19=\"\",\"\",入力用!AB19)","v":""},"名"]
[null,null,null,null,"消火砂：",null,null,{"$f":"IF(入力用!H20=\"\",\"\",入力用!H20)","v":""},"個","その他：",null,null,"（",{"$f":"IF(入力用!N20=\"\",\"\",入力用!N20)","v":""},null,null,null,null,null,null,null,null,null,null,null,null,null,null,null,null,"）"]
["火報連動遮断",null,null,null,"連動停止が必要な場合、別紙「防災盤連動停止願い申請書」を提出してください。"]
["【遵守事項】"]
[null,"1.","火気使用作業に関する「施工要領書」を別途作成し、事前に防災センターと協議、承認を得たうえで本書を提出すること。"]
[null,"2.","火気使用作業に関する「施工要領書」には、つぎの事項を記載すること。"]
[null,null,"①使用火気類",null,null,null,null,"②施工場所（図面に記載）",null,null,null,null,null,null,null,"③養生計画　※簡単なデッサン等を添付",null,null,null,null,null,null,null,null,null,"④火気作業監視者"]
[null,null,"⑤火気工事作業責任者名　※火気作業施工実施者名の明記と作業資格証明書の添付",null,null,null,null,null,null,null,null,null,null,null,null,null,null,null,null,null,null,null,"⑥具体的な管理方法"]
[null,null,"⑦溶断材の処理方法（骨等溶断は水舟に5分間以上浸す等）",null,null,null,null,null,null,null,null,null,null,null,null,null,"⑧消火設備の配置（消火器・水バケツ・防炎シート等）"]
[null,"3.","本書は、原則として作業日の１週間前までに「作業届」と一緒に提出すること。（期限以降は、特別な事由がない限り受付けない。）"]
[null,"4.","作業当日は、本書の控えおよび作業届けの控えを持参すること。"]
[null,"5.","火気作業監視者は、火気使用作業開始、終了時に、防災センターへ連絡すること。"]
[null,"6.","作業時には周囲の可燃物を撤去、移動したうえで作業を行うよう徹底すること。また、作業にともなう火災検知器の発報の可能性がある場合、事前に適切な処置を施すこと。"]
[]
[null,"7.","火気作業監視者は、火気作業時および作業後１時間は作業場所の常時監視にあたり、さらに１時間経過した時点で、再度作業場所を巡回点検すること。さらに1時間後に防災センターと確認すること。"]
[]
[null,"8.","火気にて処理した部材等は、可燃物と混合しないこと。"]
[null,"個人情報の取扱いについて"]
[null,"三井不動産ビルマネジメント株式会社は、お預かりした個人情報について、以下のとおり取扱います。同意の上ご提出をお願いいたします。"]
[null,"1.","ビルの運営管理上、作業内容の把握および作業許可・変更指示、その他作業にともなう対応を行うために個人情報を収集、"]
[null,null,"利用させていただきます。"]
[null,"2.","個人情報を利用するにあたり、上記目的のため設備会社、警備会社、清掃会社、所有者、賃貸人に対し個人情報を委託することがございます。"]
[null,null,"記載以外に委託はいたしません。"]
[null,"3.","個人情報は当社HPで公開している個人情報保護方針に従い、適切な安全管理対策を行います。"]
[null,null,"（当社HP：https://www.mfbm.co.jp/privacy/）"]
["火気作業監視者確認",null,null,null,null,null,null,null,null,null,"確認日時",null,null,null,null,null,null,null,null,"確認者",null,null,null,null,null,"※作業終了時"]
[null,null,null,null,null,null,null,null,null,null,"月　　　日　　　時　　　分"]
[]
["火気作業監視者確認",null,null,null,null,null,null,null,null,null,"確認日時",null,null,null,null,null,null,null,null,"確認者",null,null,null,null,null,"※作業終了１時間後"]
[null,null,null,null,null,null,null,null,null,null,"月　　　日　　　時　　　分"]
[]
["防災センター最終確認",null,null,null,null,null,null,null,null,null,"確認日時",null,null,null,null,null,null,null,null,"確認者",null,null,null,null,null,"※作業終了3時間後\n火気作業監視者同行"]
[null,null,null,null,null,null,null,null,null,null,"月　　　日　　　時　　　分"]
[]
["日本橋髙島屋三井ビルディング\n防災センター\n　\nＴＥＬ：03-3272-0511\nFAX：03-3272-0517",null,null,null,null,null,null,null,"承認日",null,"年　　　月　　　日",null,null,null,null,null,null,null,null,"防火担当者",null,null,"防災センター"]
[null,null,null,null,null,null,null,null,null,null,null,null,null,null,null,null,null,null,null,"防火管理技能者",null,null,"設備",null,null,"警備",null,null,"受付者"]
[]
[]
[]
[null,null,null,null,null,null,null,null,null,null,null,null,null,null,null,null,null,null,null,null,null,null,null,null,null,null,null,null,null,null,null,null,null,null,null,null,null,null,null,null,null,null,null,null,null,null,null,null,null,null,null,null,null,null,null,null,null,null,null,null,null,null,null,null,null,41,2048,null,null,null,38]
[null,null,null,null,null,null,null,null,null,null,null,null,null,null,null,null,null,null,null,null,null,null,null,null,null,null,null,null,null,null,null,null,null,null,null,null,null,null,null,null,null,null,null,null,null,null,null,null,null,null,null,null,null,null,null,null,null,null,null,null,null,null,null,null,null,42,2049,null,null,null,39]
[null,null,null,null,null,null,null,null,null,null,null,null,null,null,null,null,null,null,null,null,null,null,null,null,null,null,null,null,null,null,null,null,null,null,null,null,null,null,null,null,null,null,null,null,null,null,null,null,null,null,null,null,null,null,null,null,null,null,null,null,null,null,null,null,null,43,2050,null,null,null,"PH"]
[null,null,null,null,null,null,null,null,null,null,null,null,null,null,null,null,null,null,null,null,null,null,null,null,null,null,null,null,null,null,null,null,null,null,null,null,null,null,null,null,null,null,null,null,null,null,null,null,null,null,null,null,null,null,null,null,null,null,null,null,null,null,null,null,null,44,2051]
[null,null,null,null,null,null,null,null,null,null,null,null,null,null,null,null,null,null,null,null,null,null,null,null,null,null,null,null,null,null,null,null,null,null,null,null,null,null,null,null,null,null,null,null,null,null,null,null,null,null,null,null,null,null,null,null,null,null,null,null,null,null,null,null,null,45,2052]
[null,null,null,null,null,null,null,null,null,null,null,null,null,null,null,null,null,null,null,null,null,null,null,null,null,null,null,null,null,null,null,null,null,null,null,null,null,null,null,null,null,null,null,null,null,null,null,null,null,null,null,null,null,null,null,null,null,null,null,null,null,null,null,null,null,46,2053]
[null,null,null,null,null,null,null,null,null,null,null,null,null,null,null,null,null,null,null,null,null,null,null,null,null,null,null,null,null,null,null,null,null,null,null,null,null,null,null,null,null,null,null,null,null,null,null,null,null,null,null,null,null,null,null,null,null,null,null,null,null,null,null,null,null,47,2054]
[null,null,null,null,null,null,null,null,null,null,null,null,null,null,null,null,null,null,null,null,null,null,null,null,null,null,null,null,null,null,null,null,null,null,null,null,null,null,null,null,null,null,null,null,null,null,null,null,null,null,null,null,null,null,null,null,null,null,null,null,null,null,null,null,null,48,2055]
[null,null,null,null,null,null,null,null,null,null,null,null,null,null,null,null,null,null,null,null,null,null,null,null,null,null,null,null,null,null,null,null,null,null,null,null,null,null,null,null,null,null,null,null,null,null,null,null,null,null,null,null,null,null,null,null,null,null,null,null,null,null,null,null,null,49,2056]
[null,null,null,null,null,null,null,null,null,null,null,null,null,null,null,null,null,null,null,null,null,null,null,null,null,null,null,null,null,null,null,null,null,null,null,null,null,null,null,null,null,null,null,null,null,null,null,null,null,null,null,null,null,null,null,null,null,null,null,null,null,null,null,null,null,50,2057]

{"sheet":"②防災センター控【入力不要（自動転記）】","index":2,"n_rows":67,"n_cols":71,"rows_kept":67,"cut":false,"hidden":false,"merged":[[2,0,2,30],[4,0,5,30],[6,0,6,3],[6,4,6,5],[6,18,6,20],[6,21,6,23],[6,24,6,25],[6,26,6,28],[6,29,6,30],[7,0,7,3],[7,4,7,6],[7,7,7,17],[7,18,7,20],[7,21,7,30],[8,0,8,3],[8,4,8,6],[8,7,8,16],[8,18,8,20],[8,21,8,30],[11,7,11,17],[11,18,11,20],[11,21,11,30],[12,0,12,3],[12,4,12,5],[12,16,12,17],[12,19,12,20],[12,23,12,24],[12,26,12,27],[9,0,11,3],[9,4,9,6],[9,7,9,17],[9,18,9,20],[9,21,9,30],[10,4,10,6],[10,7,10,16],[10,18,10,20],[10,21,10,30],[11,4,11,6],[13,0,13,3],[13,4,13,6],[13,9,13,29],[14,0,14,3],[14,4,14,30],[15,0,16,3],[15,4,15,5],[15,7,15,8],[15,10,15,11],[15,13,15,14],[15,16,15,17],[16,4,16,5],[16,7,16,29],[17,0,17,3],[17,4,17,5],[17,7,17,8],[17,10,17,11],[17,13,17,14],[17,16,17,29],[20,0,20,3],[22,2,22,30],[23,2,23,30],[27,2,27,30],[28,2,28,30],[29,2,29,30],[18,0,19,3],[18,4,18,6],[18,9,18,11],[18,14,18,16],[18,19,18,21],[18,24,18,26],[19,4,19,6],[19,9,19,11],[19,13,19,29],[50,10,50,18],[50,19,50,24],[46,0,47,9],[46,10,46,18],[46,19,46,24],[46,25,47,30],[47,10,47,18],[47,19,47,24],[30,2,31,30],[32,2,33,30],[34,2,34,30],[43,0,44,9],[43,10,43,18],[43,19,43,24],[43,25,44,30],[44,10,44,18],[44,19,44,24],[42,2,42,30],[54,22,56,24],[54,25,56,27],[54,28,56,30],[35,1,35,30],[36,1,36,30],[37,2,37,30],[38,2,38,30],[39,2,39,30],[40,2,40,30],[41,2,41,30],[52,0,56,7],[52,8,56,9],[52,22,52,30],[53,19,53,21],[53,22,53,24],[53,25,53,27],[53,28,53,30],[52,19,52,21],[52,10,56,18],[54,19,56,21],[49,0,50,9],[49,10,49,18],[49,19,49,24],[49,25,50,30]]}
[null,null,null,null,null,null,null,null,null,null,null,null,null,null,null,null,null,null,null,null,null,null,null,null,null,null,null,null,null,null,"②防災センター控"]
["日本橋髙島屋三井ビル　防災センター　御中"]
["火　気　使　用　届"]
[]
["　下記の要領で作業を実施したいので許可願います。なお、火気使用の開始・終了時には必ず防災センターに報告します。また、作業後3時間、火気使用作業場所の監視を行います。"]
[]
["申 請 日",null,null,null,{"$f":"IF(入力用!E7=\"\",\"\",入力用!E7)","v":""},null,"年",{"$f":"IF(入力用!H7=\"\",\"\",入力用!H7)","v":""},"月",{"$f":"IF(入力用!J7=\"\",\"\",入力用!J7)","v":""},"日","（",{"$f":"IF(入力用!M7=\"\",\"\",入力用!M7)","v":""},"）",null,null,null,null,"作業区分",null,null,"ビル作業",null,null,{"$f":"IF(入力用!Y7=\"\",\"\",入力用!Y7)","v":""},null,"ﾃﾅﾝﾄ作業",null,null,{"$f":"IF(入力用!AD7=\"\",\"\",入力用!AD7)","v":""}]
["申 請 者",null,null,null,"会 社 名",null,null,{"$f":"IF(入力用!H8=\"\",\"\",入力用!H8)","v":""},null,null,null,null,null,null,null,null,null,null,"部署名",null,null,{"$f":"IF(入力用!V8=\"\",\"\",入力用!V8)","v":""}]
["（ﾃﾅﾝﾄ作業の場合ﾃﾅﾝﾄ名）",null,null,null,"テナント\n防火管理者",null,null,{"$f":"IF(入力用!H9=\"\",\"\",入力用!H9)","v":""},null,null,null,null,null,null,null,null,null,"㊞","電話番号",null,null,{"$f":"IF(入力用!V9=\"\",\"\",入力用!V9)","v":""}]
["作 業 者",null,null,null,"会 社 名",null,null,{"$f":"IF(入力用!H10=\"\",\"\",入力用!H10)","v":""},null,null,null,null,null,null,null,null,null,null,"会社電話",null,null,{"$f":"IF(入力用!V10=\"\",\"\",入力用!V10)","v":""}]
[null,null,null,null,"火気使用\n責任者名",null,null,{"$f":"IF(入力用!H11=\"\",\"\",入力用!H11)","v":""},null,null,null,null,null,null,null,null,null,"㊞","携帯電話",null,null,{"$f":"IF(入力用!V11=\"\",\"\",入力用!V11)","v":""}]
[null,null,null,null,"火気使用者名",null,null,{"$f":"IF(入力用!H12=\"\",\"\",入力用!H12)","v":""},null,null,null,null,null,null,null,null,null,null,"携帯電話",null,null,{"$f":"IF(入力用!V12=\"\",\"\",入力用!V12)","v":""}]
["作業日時",null,null,null,{"$f":"IF(入力用!E13=\"\",\"\",入力用!E13)","v":""},null,"年",{"$f":"IF(入力用!H13=\"\",\"\",入力用!H13)","v":""},"月",{"$f":"IF(入力用!J13=\"\",\"\",入力用!J13)","v":""},"日","（",{"$f":"IF(入力用!M13=\"\",\"\",入力用!M13)","v":""},"）",null,null,{"$f":"IF(入力用!Q13=\"\",\"\",入力用!Q13)","v":""},{"$error":"#REF!"},"時",{"$f":"IF(入力用!T13=\"\",\"\",入力用!T13)","v":""},{"$error":"#REF!"},"分","から",{"$f":"IF(入力用!X13=\"\",\"\",入力用!X13)","v":""},{"$error":"#REF!"},"時",{"$f":"IF(入力用!AA13=\"\",\"\",入力用!AA13)","v":""},{"$error":"#REF!"},"分","まで"]
["作業場所",null,null,null,{"$f":"IF(入力用!E14=\"\",\"\",入力用!E14)","v":""},null,null,"階","（",{"$f":"IF(入力用!J14=\"\",\"\",入力用!J14)","v":""},{"$error":"#REF!"},{"$error":"#REF!"},{"$error":"#REF!"},{"$error":"#REF!"},{"$error":"#REF!"},{"$error":"#REF!"},{"$error":"#REF!"},{"$error":"#REF!"},{"$error":"#REF!"},{"$error":"#REF!"},{"$error":"#REF!"},{"$error":"#REF!"},{"$error":"#REF!"},{"$error":"#REF!"},{"$error":"#REF!"},{"$error":"#REF!"},{"$error":"#REF!"},{"$error":"#REF!"},{"$error":"#REF!"},{"$error":"#REF!"},"）"]
["件名",null,null,null,{"$f":"IF(入力用!E15=\"\",\"\",入力用!E15)","v":""}]
["火気使用目的",null,null,null,"溶接：",null,{"$f":"IF(入力用!G16=\"\",\"\",入力用!G16)","v":""},"溶断：",null,{"$f":"IF(入力用!J16=\"\",\"\",入力用!J16)","v":""},"圧接：",null,{"$f":"IF(入力用!M16=\"\",\"\",入力用!M16)","v":""},"防水：",null,{"$f":"IF(入力用!P16=\"\",\"\",入力用!P16)","v":""},"乾燥：",null,{"$f":"IF(入力用!S16=\"\",\"\",入力用!S16)","v":""}]
[null,null,null,null,"その他：",null,"（",{"$f":"IF(入力用!H17=\"\",\"\",入力用!H17)","v":""},null,null,null,null,null,null,null,null,null,null,null,null,null,null,null,null,null,null,null,null,null,null,"）"]
["火気種類",null,null,null,"電気：",null,{"$f":"IF(入力用!G18=\"\",\"\",入力用!G18)","v":""},"ガス：",null,{"$f":"IF(入力用!J18=\"\",\"\",入力用!J18)","v":""},"ｻﾝﾀﾞｰ：",null,{"$f":"IF(入力用!M18=\"\",\"\",入力用!M18)","v":""},"その他：",null,"（",{"$f":"IF(入力用!Q18=\"\",\"\",入力用!Q18)","v":""},null,null,null,null,null,null,null,null,null,null,null,null,null,"）"]
["管理方法",null,null,null,"消火器：",null,null,{"$f":"IF(入力用!H19=\"\",\"\",入力用!H19)","v":""},"本","水バケツ：",null,null,{"$f":"IF(入力用!M19=\"\",\"\",入力用!M19)","v":""},"個","防炎シート：",null,null,{"$f":"IF(入力用!R19=\"\",\"\",入力用!R19)","v":""},"枚","案内標識：",null,null,{"$f":"IF(入力用!W19=\"\",\"\",入力用!W19)","v":""},"台","監視員：",null,null,{"$f":"IF(入力用!AB19=\"\",\"\",入力用!AB19)","v":""},"名"]
[null,null,null,null,"消火砂：",null,null,{"$f":"IF(入力用!H20=\"\",\"\",入力用!H20)","v":""},"個","その他：",null,null,"（",{"$f":"IF(入力用!N20=\"\",\"\",入力用!N20)","v":""},null,null,null,null,null,null,null,null,null,null,null,null,null,null,null,null,"）"]
["火報連動遮断",null,null,null,"連動停止が必要な場合、別紙「防災盤連動停止願い申請書」を提出してください。"]
["【遵守事項】"]
[null,"1.","火気使用作業に関する「施工要領書」を別途作成し、事前に防災センターと協議、承認を得たうえで本書を提出すること。"]
[null,"2.","火気使用作業に関する「施工要領書」には、つぎの事項を記載すること。"]
[null,null,"①使用火気類",null,null,null,null,"②施工場所（図面に記載）",null,null,null,null,null,null,null,"③養生計画　※簡単なデッサン等を添付",null,null,null,null,null,null,null,null,null,"④火気作業監視者"]
[null,null,"⑤火気工事作業責任者名　※火気作業施工実施者名の明記と作業資格証明書の添付",null,null,null,null,null,null,null,null,null,null,null,null,null,null,null,null,null,null,null,"⑥具体的な管理方法"]
[null,null,"⑦溶断材の処理方法（骨等溶断は水舟に5分間以上浸す等）",null,null,null,null,null,null,null,null,null,null,null,null,null,"⑧消火設備の配置（消火器・水バケツ・防炎シート等）"]
[null,"3.","本書は、原則として作業日の１週間前までに「作業届」と一緒に提出すること。（期限以降は、特別な事由がない限り受付けない。）"]
[null,"4.","作業当日は、本書の控えおよび作業届けの控えを持参すること。"]
[null,"5.","火気作業監視者は、火気使用作業開始、終了時に、防災センターへ連絡すること。"]
[null,"6.","作業時には周囲の可燃物を撤去、移動したうえで作業を行うよう徹底すること。また、作業にともなう火災検知器の発報の可能性がある場合、事前に適切な処置を施すこと。"]
[]
[null,"7.","火気作業監視者は、火気作業時および作業後１時間は作業場所の常時監視にあたり、さらに１時間経過した時点で、再度作業場所を巡回点検すること。さらに1時間後に防災センターと確認すること。"]
[]
[null,"8.","火気にて処理した部材等は、可燃物と混合しないこと。"]
[null,"個人情報の取扱いについて"]
[null,"三井不動産ビルマネジメント株式会社は、お預かりした個人情報について、以下のとおり取扱います。同意の上ご提出をお願いいたします。"]
[null,"1.","ビルの運営管理上、作業内容の把握および作業許可・変更指示、その他作業にともなう対応を行うために個人情報を収集、"]
[null,null,"利用させていただきます。"]
[null,"2.","個人情報を利用するにあたり、上記目的のため設備会社、警備会社、清掃会社、所有者、賃貸人に対し個人情報を委託することがございます。"]
[null,null,"記載以外に委託はいたしません。"]
[null,"3.","個人情報は当社HPで公開している個人情報保護方針に従い、適切な安全管理対策を行います。"]
[null,null,"（当社HP：https://www.mfbm.co.jp/privacy/）"]
["火気作業監視者確認",null,null,null,null,null,null,null,null,null,"確認日時",null,null,null,null,null,null,null,null,"確認者",null,null,null,null,null,"※作業終了時"]
[null,null,null,null,null,null,null,null,null,null,"月　　　日　　　時　　　分"]
[]
["火気作業監視者確認",null,null,null,null,null,null,null,null,null,"確認日時",null,null,null,null,null,null,null,null,"確認者",null,null,null,null,null,"※作業終了１時間後"]
[null,null,null,null,null,null,null,null,null,null,"月　　　日　　　時　　　分"]
[]
["防災センター最終確認",null,null,null,null,null,null,null,null,null,"確認日時",null,null,null,null,null,null,null,null,"確認者",null,null,null,null,null,"※作業終了3時間後\n火気作業監視者同行"]
[null,null,null,null,null,null,null,null,null,null,"月　　　日　　　時　　　分"]
[]
["日本橋髙島屋三井ビルディング\n防災センター\n　\nＴＥＬ：03-3272-0511\nFAX：03-3272-0517",null,null,null,null,null,null,null,"承認日",null,"年　　　月　　　日",null,null,null,null,null,null,null,null,"防火担当者",null,null,"防災センター"]
[null,null,null,null,null,null,null,null,null,null,null,null,null,null,null,null,null,null,null,"防火管理技能者",null,null,"設備",null,null,"警備",null,null,"受付者"]
[]
[]
[]
[null,null,null,null,null,null,null,null,null,null,null,null,null,null,null,null,null,null,null,null,null,null,null,null,null,null,null,null,null,null,null,null,null,null,null,null,null,null,null,null,null,null,null,null,null,null,null,null,null,null,null,null,null,null,null,null,null,null,null,null,null,null,null,null,null,41,2048,null,null,null,38]
[null,null,null,null,null,null,null,null,null,null,null,null,null,null,null,null,null,null,null,null,null,null,null,null,null,null,null,null,null,null,null,null,null,null,null,null,null,null,null,null,null,null,null,null,null,null,null,null,null,null,null,null,null,null,null,null,null,null,null,null,null,null,null,null,null,42,2049,null,null,null,39]
[null,null,null,null,null,null,null,null,null,null,null,null,null,null,null,null,null,null,null,null,null,null,null,null,null,null,null,null,null,null,null,null,null,null,null,null,null,null,null,null,null,null,null,null,null,null,null,null,null,null,null,null,null,null,null,null,null,null,null,null,null,null,null,null,null,43,2050,null,null,null,"PH"]
[null,null,null,null,null,null,null,null,null,null,null,null,null,null,null,null,null,null,null,null,null,null,null,null,null,null,null,null,null,null,null,null,null,null,null,null,null,null,null,null,null,null,null,null,null,null,null,null,null,null,null,null,null,null,null,null,null,null,null,null,null,null,null,null,null,44,2051]
[null,null,null,null,null,null,null,null,null,null,null,null,null,null,null,null,null,null,null,null,null,null,null,null,null,null,null,null,null,null,null,null,null,null,null,null,null,null,null,null,null,null,null,null,null,null,null,null,null,null,null,null,null,null,null,null,null,null,null,null,null,null,null,null,null,45,2052]
[null,null,null,null,null,null,null,null,null,null,null,null,null,null,null,null,null,null,null,null,null,null,null,null,null,null,null,null,null,null,null,null,null,null,null,null,null,null,null,null,null,null,null,null,null,null,null,null,null,null,null,null,null,null,null,null,null,null,null,null,null,null,null,null,null,46,2053]
[null,null,null,null,null,null,null,null,null,null,null,null,null,null,null,null,null,null,null,null,null,null,null,null,null,null,null,null,null,null,null,null,null,null,null,null,null,null,null,null,null,null,null,null,null,null,null,null,null,null,null,null,null,null,null,null,null,null,null,null,null,null,null,null,null,47,2054]
[null,null,null,null,null,null,null,null,null,null,null,null,null,null,null,null,null,null,null,null,null,null,null,null,null,null,null,null,null,null,null,null,null,null,null,null,null,null,null,null,null,null,null,null,null,null,null,null,null,null,null,null,null,null,null,null,null,null,null,null,null,null,null,null,null,48,2055]
[null,null,null,null,null,null,null,null,null,null,null,null,null,null,null,null,null,null,null,null,null,null,null,null,null,null,null,null,null,null,null,null,null,null,null,null,null,null,null,null,null,null,null,null,null,null,null,null,null,null,null,null,null,null,null,null,null,null,null,null,null,null,null,null,null,49,2056]
[null,null,null,null,null,null,null,null,null,null,null,null,null,null,null,null,null,null,null,null,null,null,null,null,null,null,null,null,null,null,null,null,null,null,null,null,null,null,null,null,null,null,null,null,null,null,null,null,null,null,null,null,null,null,null,null,null,null,null,null,null,null,null,null,null,50,2057]

{"sheet":"リスト","index":3,"n_rows":52,"n_cols":10,"rows_kept":52,"cut":false,"hidden":false,"merged":[]}
["【リスト】"]
[null,"年","月","日","曜","階","時","分","側"]
[1,2018,1,1,"月","B5",0,0,"東","○"]
[2,2019,2,2,"火","B4",1,5,"南"]
[3,2020,3,3,"水","B3",2,10,"西"]
[4,2021,4,4,"木","B2",3,15,"北"]
[5,2022,5,5,"金","B1",4,20]
[6,2023,6,6,"土",1,5,25]
[7,2024,7,7,"日",2,6,30]
[8,2025,8,8,null,3,7,35]
[9,2026,9,9,null,4,8,40]
[10,2027,10,10,null,5,9,45]
[11,2028,11,11,null,6,10,50]
[12,2029,12,12,null,7,11,55]
[13,2030,null,13,null,8,12]
[14,2031,null,14,null,9,13]
[15,2032,null,15,null,10,14]
[16,2033,null,16,null,11,15]
[17,2034,null,17,null,12,16]
[18,2035,null,18,null,13,17]
[19,2036,null,19,null,14,18]
[20,2037,null,20,null,15,19]
[21,2038,null,21,null,16,20]
[22,2039,null,22,null,17,21]
[23,2040,null,23,null,18,22]
[24,2041,null,24,null,19,23]
[25,2042,null,25,null,20]
[26,2043,null,26,null,21]
[27,2044,null,27,null,22]
[28,2045,null,28,null,23]
[29,2046,null,29,null,24]
[30,2047,null,30,null,25]
[31,2048,null,31,null,26]
[32,2049,null,null,null,27]
[33,2050,null,null,null,28]
[34,2051,null,null,null,29]
[35,2052,null,null,null,30]
[36,2053,null,null,null,31]
[37,2054,null,null,null,32]
[38,2055,null,null,null,"PH"]
[39,2056]
[40,2057]
[41,2058]
[42,2059]
[43,2060]
[44,2061]
[45,2062]
[46,2063]
[47,2064]
[48,2065]
[49,2066]
[50,2067]